fUST/lending_fUST_20250428
["ID","MTS","AMOUNT","RATE_DAILY","PERIOD"]
[359230730,1745853049178,-400.0,0.00021917,2]
[359230731,1745853049187,-400.0,0.00021917,2]
[359230732,1745853049200,-1717.56,0.00021917,2]
[359230733,1745853049210,-6550.97,0.00021917,2]
[359230734,1745853049220,-6550.97,0.00021917,2]
[359230735,1745853049229,-6550.97,0.00021917,2]
[359230736,1745853049239,-6550.97,0.00021917,2]
[359230737,1745853049248,-501.13022567,0.00021917,2]
[359230738,1745853049258,-6550.97,0.00021917,2]
[359230739,1745853049267,-6550.97,0.00021917,2]
[359230740,1745853049276,-400.0,0.00021917,2]
[359230741,1745853049286,-400.0,0.00021917,2]
[359230742,1745853049295,-6550.97,0.00021917,2]
[359230743,1745853049305,-304.52488214,0.00021918,2]
[359230744,1745853049314,-420.0,0.00021961,2]
[359230745,1745853049323,-500.0,0.00021973,2]
[359230746,1745853049332,-500.0,0.00021973,2]
[359230747,1745853049343,-500.0,0.00021973,2]
[359230748,1745853049353,-500.0,0.00021973,2]
[359230749,1745853049363,-500.0,0.00021973,2]
[359230750,1745853049372,-500.0,0.00021973,2]
[359230751,1745853049382,-500.0,0.00021973,2]
[359230752,1745853049391,-500.0,0.00021973,2]
[359230753,1745853049400,-169.27324784,0.00021973,2]
[359230754,1745853049410,-159.43466818,0.00021973,2]
[359230755,1745853049419,-500.0,0.00021973,2]
[359230756,1745853049428,-500.0,0.00021973,2]
[359230757,1745853049438,-500.0,0.00021973,2]
[359230758,1745853049451,-500.0,0.00021973,2]
[359230759,1745853049461,-6550.97,0.00021979,2]
[359230760,1745853049471,-6550.97,0.00021979,2]
[359230761,1745853049481,-151.0,0.0002198,7]
[359230762,1745853049491,-151.0,0.0002198,7]
[359230763,1745853049501,-151.0,0.0002198,7]
[359230764,1745853049511,-151.0,0.0002198,7]
[359230765,1745853049520,-151.0,0.0002199,7]
[359230766,1745853049530,-151.108648,0.0002199,7]
[359230767,1745853049539,-262.865244,0.0002199,7]
[359230768,1745853049549,-151.0,0.0002199,7]
[359230769,1745853049559,-151.0,0.0002199,7]
[359230770,1745853049568,-1290.4593975,0.00022054,2]
[359230771,1745853049577,-500.0,0.00022173,2]
[359230772,1745853049586,-507.79295297,0.00022173,2]
[359230773,1745853049595,-500.0,0.00022173,2]
[359230774,1745853049605,-500.0,0.00022173,2]
[359230775,1745853049614,-500.0,0.00022173,2]
[359230776,1745853049624,-500.0,0.00022173,2]
[359230777,1745853049633,-500.0,0.00022173,2]
[359230778,1745853049643,-500.0,0.00022173,2]
[359230779,1745853049652,-500.0,0.00022173,2]
[359230780,1745853049662,-500.0,0.00022173,2]
[359230781,1745853049671,-500.0,0.00022173,2]
[359230782,1745853049681,-500.0,0.00022173,2]
[359230783,1745853049690,-500.0,0.00022173,2]
[359230784,1745853049703,-500.0,0.00022173,2]
[359230785,1745853049712,-1621.61,0.0002219,2]
[359230786,1745853049721,-541.52,0.0002219,2]
[359230787,1745853049731,-151.0,0.0002219,7]
[359230788,1745853049740,-56446.24120318,0.00022191,2]
[359230789,1745853049750,-400.0,0.00022191,2]
[359230790,1745853049759,-400.0,0.00022191,2]
[359230791,1745853049769,-400.0,0.00022191,2]
[359230792,1745853049778,-400.0,0.00022191,2]
[359230793,1745853049792,-400.0,0.00022191,2]
[359230794,1745853049802,-400.0,0.00022191,2]
[359230795,1745853049812,-400.0,0.00022191,2]
[359230796,1745853049822,-400.0,0.00022191,2]
[359230797,1745853049832,-530.31784578,0.00022191,2]
[359230798,1745853049842,-400.0,0.00022191,2]
[359230799,1745853049852,-400.0,0.00022191,2]
[359230800,1745853049862,-400.0,0.00022191,2]
[359230801,1745853049872,-405.11,0.00022191,2]
[359230802,1745853049882,-351.68309348,0.00022191,2]
[359230803,1745853049892,-308.3176905,0.00022191,2]
[359230804,1745853049901,-400.0,0.00022191,2]
[359230805,1745853049911,-400.0,0.00022191,2]
[359230806,1745853049920,-400.0,0.00022191,2]
[359230807,1745853049930,-400.0,0.00022191,2]
[359230808,1745853049940,-400.0,0.00022191,2]
[359230809,1745853049954,-400.0,0.00022191,2]
[359230810,1745853049965,-432.37,0.00022191,2]
[359230811,1745853049975,-400.0,0.00022191,2]
[359230812,1745853049985,-400.0,0.00022191,2]
[359230813,1745853049995,-677.31,0.00022191,2]
[359230814,1745853050005,-400.0,0.00022191,2]
[359230815,1745853050015,-400.0,0.00022191,2]
[359230816,1745853050025,-156.35283928,0.00022191,2]
[359230857,1745854096549,-945.25515569,0.000125,2]
[359230858,1745854102170,-180.83055779,0.000125,2]
[359230865,1745854118088,1000.0,0.0001,2]
[359230926,1745854232124,-1982.96118371,0.000125,2]
[359230928,1745854232134,-825.64488063,0.000176,2]
[359230930,1745854232143,-3259.67825476,0.0001871,2]
[359230932,1745854232152,-505.87202223,0.0001881,2]
[359230934,1745854232163,-150.0,0.000189,2]
[359230936,1745854232173,-388.9019121,0.00019453,2]
[359230938,1745854232184,-208.6259579,0.00019728,2]
[359230940,1745854232194,-370.8573067,0.00019788,2]
[359230942,1745854232205,-300.0,0.00019899,2]
[359230944,1745854232214,-1705.62088953,0.000199,2]
[359230946,1745854232223,-189.21035371,0.00019904,2]
[359230948,1745854232232,-300.0,0.00019998,2]
[359230950,1745854232241,-300.0,0.00019999,2]
[359230952,1745854232250,-358.20607878,0.0002,2]
[359230954,1745854232260,-7676.15805207,0.0002,2]
[359230956,1745854232269,-1180.52849094,0.0002,2]
[359230958,1745854232278,-170.19460019,0.0002,2]
[359230961,1745854232286,-1492.57652172,0.0002059,2]
[359230964,1745854232297,-213.04436777,0.0002059,2]
[359230967,1745854232307,-1512.22946075,0.00020987,2]
[359230969,1745854232320,-4046.63890435,0.00020987,2]
[359230970,1745854232343,-21009.35532448,0.00020987,2]
[359230971,1745854232353,-500.0,0.00020988,2]
[359230972,1745854232363,-500.0,0.00020988,2]
[359230973,1745854232372,-317.61070332,0.00020988,2]
[359230974,1745854232382,-524.2703879,0.00020988,2]
[359230975,1745854232391,-362.06624736,0.00020988,2]
[359230976,1745854232400,-500.0,0.00020988,2]
[359230977,1745854232409,-500.0,0.00020988,2]
[359230978,1745854232418,-500.0,0.00020988,2]
[359230979,1745854232427,-500.0,0.00020988,2]
[359230980,1745854232436,-500.0,0.00020988,2]
[359230982,1745854232444,-500.0,0.00020988,2]
[359230983,1745854232458,-500.0,0.00020988,2]
[359230984,1745854232467,-500.0,0.00020988,2]
[359230986,1745854232477,-500.0,0.00020988,2]
[359230988,1745854232486,-500.0,0.00020988,2]
[359230990,1745854232496,-479.66149474,0.00020988,2]
[359230992,1745854232505,-500.0,0.00020988,2]
[359230994,1745854232515,-500.0,0.00020988,2]
[359230996,1745854232524,-500.0,0.00020988,2]
[359230998,1745854232533,-500.0,0.00020988,2]
[359231000,1745854232542,-500.0,0.00020988,2]
[359231002,1745854232551,-500.0,0.00020988,2]
[359231004,1745854232561,-500.0,0.00020988,2]
[359231006,1745854232571,-500.0,0.00020988,2]
[359231008,1745854232580,-500.0,0.00020988,2]
[359231010,1745854232589,-500.0,0.00020988,2]
[359231012,1745854232599,-500.0,0.00020988,2]
[359231014,1745854232608,-500.0,0.00020988,2]
[359231016,1745854232618,-156.08894322,0.00020988,2]
[359231018,1745854232627,-500.0,0.00020988,2]
[359231020,1745854232636,-500.0,0.00020988,2]
[359231022,1745854232646,-500.0,0.00020988,2]
[359231024,1745854232655,-500.0,0.00020988,2]
[359231026,1745854232664,-500.0,0.00020988,2]
[359231028,1745854232676,-500.0,0.00020988,2]
[359231029,1745854232686,-500.0,0.00020988,2]
[359231031,1745854232695,-500.0,0.00020988,2]
[359231033,1745854232707,-300.93661491,0.00020988,2]
[359231034,1745854232717,-500.0,0.00020988,2]
[359231035,1745854232726,-500.0,0.00020988,2]
[359231037,1745854232736,-500.0,0.00020988,2]
[359231039,1745854232745,-200.0,0.00020988,2]
[359231040,1745854232754,-500.0,0.00020988,2]
[359231042,1745854232764,-613.44771499,0.00021,2]
[359231044,1745854232773,-157.45,0.00021,2]
[359231046,1745854232782,-266.80377782,0.00021,2]
[359231047,1745854232792,-6539.4212633,0.0002114,2]
[359231048,1745854232802,-1705.62088949,0.00021279,3]
[359231049,1745854232811,-420.0,0.00021777,2]
[359231050,1745854232819,-359.69950783,0.00021817,2]
[359231051,1745854232828,-316.76,0.00021907,3]
[359231052,1745854232839,-305.73097024,0.00021916,2]
[359231053,1745854232847,-400.0,0.00021917,2]
[359231054,1745854232856,-400.0,0.00021917,2]
[359231055,1745854232868,-400.0,0.00021917,2]
[359231056,1745854232878,-400.0,0.00021917,2]
[359231057,1745854232887,-502.50117206,0.00021917,2]
[359231058,1745854232897,-400.0,0.00021917,2]
[359231059,1745854232906,-502.88122929,0.00021917,2]
[359231060,1745854232915,-500.0,0.00021917,2]
[359231061,1745854232924,-400.0,0.00021917,2]
[359231062,1745854232933,-400.0,0.00021917,2]
[359231063,1745854232943,-520.1695866,0.00021917,2]
[359231064,1745854232955,-400.0,0.00021917,2]
[359231065,1745854232965,-502.75938959,0.00021917,2]
[359231066,1745854232974,-400.0,0.00021917,2]
[359231067,1745854232984,-500.42114207,0.00021917,2]
[359231068,1745854232994,-400.0,0.00021917,2]
[359231069,1745854233003,-400.0,0.00021917,2]
[359231070,1745854233012,-400.0,0.00021917,2]
[359231071,1745854233022,-400.0,0.00021917,2]
[359231072,1745854233032,-502.05708559,0.00021917,2]
[359231073,1745854233041,-400.0,0.00021917,2]
[359231074,1745854233051,-400.0,0.00021917,2]
[359231075,1745854233060,-400.0,0.00021917,2]
[359231076,1745854233070,-400.0,0.00021917,2]
[359231077,1745854233080,-418.47852428,0.00021917,2]
[359231078,1745854233089,-400.0,0.00021917,2]
[359231079,1745854233099,-463.42733671,0.00021917,2]
[359231080,1745854233108,-400.0,0.00021917,2]
[359231081,1745854233118,-400.0,0.00021917,2]
[359231082,1745854233128,-400.0,0.00021917,2]
[359231083,1745854233137,-400.0,0.00021917,2]
[359231084,1745854233147,-400.0,0.00021917,2]
[359231085,1745854233156,-400.0,0.00021917,2]
[359231086,1745854233166,-446.98,0.00021917,2]
[359231087,1745854233176,-400.0,0.00021917,2]
[359231088,1745854233186,-420.9,0.00021917,2]
[359231089,1745854233195,-210.64268411,0.00021917,2]
[359231090,1745854233207,-400.0,0.00021917,2]
[359231091,1745854233216,-314.98905387,0.00021917,2]
[359231092,1745854233226,-455.03,0.00021917,2]
[359231093,1745854233235,-400.0,0.00021917,2]
[359231094,1745854233244,-400.0,0.00021917,2]
[359231095,1745854233254,-400.0,0.00021917,2]
[359231096,1745854233263,-642.33,0.00021917,2]
[359231097,1745854233272,-514.80542876,0.00021917,2]
[359231098,1745854233282,-400.0,0.00021917,2]
[359231099,1745854233292,-503.0740149,0.00021917,2]
[359231100,1745854233304,-427.15,0.00021917,2]
[359231101,1745854233314,-400.0,0.00021917,2]
[359231102,1745854233324,-400.0,0.00021917,2]
[359231103,1745854233333,-400.0,0.00021917,2]
[359231104,1745854233343,-400.0,0.00021917,2]
[359231105,1745854233353,-501.52698713,0.00021917,2]
[359231106,1745854233364,-400.0,0.00021917,2]
[359231107,1745854233375,-400.0,0.00021917,2]
[359231108,1745854233386,-400.0,0.00021917,2]
[359231109,1745854233396,-400.0,0.00021917,2]
[359231110,1745854233406,-969.45,0.00021917,2]
[359231111,1745854233415,-280.28709489,0.00021917,2]
[359231112,1745854233425,-400.0,0.00021917,2]
[359231113,1745854233434,-400.0,0.00021917,2]
[359231114,1745854233444,-400.0,0.00021917,2]
[359231115,1745854233456,-300.01292223,0.00021917,2]
[359231116,1745854233467,-400.0,0.00021917,2]
[359231117,1745854233478,-400.0,0.00021917,2]
[359231118,1745854233488,-400.0,0.00021917,2]
[359231119,1745854233498,-400.0,0.00021917,2]
[359231120,1745854233507,-528.32,0.00021917,2]
[359231121,1745854233517,-1005.88,0.00021917,2]
[359231122,1745854233527,-1005.88,0.00021917,2]
[359231123,1745854233537,-1005.88,0.00021917,2]
[359231124,1745854233546,-1000.0,0.00021917,2]
[359231125,1745854233556,-400.0,0.00021917,2]
[359231126,1745854233566,-400.0,0.00021917,2]
[359231127,1745854233576,-400.0,0.00021917,2]
[359231128,1745854233585,-400.0,0.00021917,2]
[359231129,1745854233595,-400.0,0.00021917,2]
[359231130,1745854233604,-473.11918052,0.00021917,2]
[359231131,1745854233614,-1000.0,0.00021917,2]
[359231132,1745854233624,-506.70967208,0.00021917,2]
[359231133,1745854233633,-400.0,0.00021917,2]
[359231134,1745854233644,-501.38796313,0.00021917,2]
[359231135,1745854233653,-245.57210907,0.00021917,2]
[359231136,1745854233663,-400.0,0.00021917,2]
[359231137,1745854233673,-400.0,0.00021917,2]
[359231138,1745854233683,-400.0,0.00021917,2]
[359231139,1745854233693,-400.0,0.00021917,2]
[359231140,1745854233704,-400.0,0.00021917,2]
[359231141,1745854233714,-400.0,0.00021917,2]
[359231142,1745854233723,-503.58667273,0.00021917,2]
[359231143,1745854233732,-400.0,0.00021917,2]
[359231144,1745854233742,-400.0,0.00021917,2]
[359231145,1745854233752,-400.0,0.00021917,2]
[359231146,1745854233761,-400.0,0.00021917,2]
[359231147,1745854233770,-507.08662482,0.00021917,2]
[359231148,1745854233780,-408.21,0.00021917,2]
[359231149,1745854233790,-416.66,0.00021917,2]
[359231150,1745854233799,-400.0,0.00021917,2]
[359231151,1745854233808,-400.0,0.00021917,2]
[359231152,1745854233818,-400.0,0.00021917,2]
[359231153,1745854233827,-400.0,0.00021917,2]
[359231154,1745854233836,-400.0,0.00021917,2]
[359231155,1745854233846,-400.0,0.00021917,2]
[359231156,1745854233855,-400.0,0.00021917,2]
[359231157,1745854233864,-509.20860474,0.00021917,2]
[359231158,1745854233874,-400.0,0.00021917,2]
[359231159,1745854233884,-500.0,0.00021917,2]
[359231160,1745854233893,-440.06,0.00021917,2]
[359231161,1745854233903,-400.0,0.00021917,2]
[359231162,1745854233912,-400.0,0.00021917,2]
[359231163,1745854233922,-400.0,0.00021917,2]
[359231164,1745854233930,-400.0,0.00021917,2]
[359231165,1745854233939,-400.0,0.00021917,2]
[359231166,1745854233949,-372.08197983,0.00021917,2]
[359231167,1745854233959,-400.0,0.00021917,2]
[359231168,1745854233968,-400.0,0.00021917,2]
[359231169,1745854233977,-504.84467221,0.00021917,2]
[359231170,1745854233987,-400.0,0.00021917,2]
[359231171,1745854233996,-400.0,0.00021917,2]
[359231172,1745854234005,-400.0,0.00021917,2]
[359231173,1745854234014,-507.34666367,0.00021917,2]
[359231174,1745854234023,-402.83,0.00021917,2]
[359231175,1745854234032,-400.0,0.00021917,2]
[359231176,1745854234041,-400.0,0.00021917,2]
[359231177,1745854234051,-400.0,0.00021917,2]
[359231178,1745854234060,-400.0,0.00021917,2]
[359231179,1745854234070,-400.0,0.00021917,2]
[359231180,1745854234079,-400.0,0.00021917,2]
[359231181,1745854234089,-400.0,0.00021917,2]
[359231182,1745854234099,-575.67,0.00021917,2]
[359231183,1745854234109,-575.67,0.00021917,2]
[359231184,1745854234118,-575.67,0.00021917,2]
[359231185,1745854234129,-400.0,0.00021917,2]
[359231186,1745854234139,-238.9730913,0.00021917,2]
[359231187,1745854234149,-400.0,0.00021917,2]
[359231188,1745854234159,-400.0,0.00021917,2]
[359231189,1745854234169,-400.0,0.00021917,2]
[359231190,1745854234179,-400.0,0.00021917,2]
[359231191,1745854234189,-400.0,0.00021917,2]
[359231192,1745854234199,-400.0,0.00021917,2]
[359231193,1745854234209,-400.0,0.00021917,2]
[359231194,1745854234219,-455.14,0.00021917,2]
[359231195,1745854234229,-502.21852884,0.00021917,2]
[359231196,1745854234239,-311.13101891,0.00021917,2]
[359231197,1745854234248,-400.0,0.00021917,2]
[359231198,1745854234258,-400.0,0.00021917,2]
[359231199,1745854234267,-864.1,0.00021917,2]
[359231200,1745854234389,-400.0,0.00021917,2]
[359231201,1745854234421,-400.0,0.00021917,2]
[359231202,1745854234431,-191.31799006,0.00021917,2]
[359231203,1745854234455,-208.68200994,0.00021917,2]
[359231204,1745854234464,-400.0,0.00021917,2]
[359231205,1745854234474,-400.0,0.00021917,2]
[359231206,1745854234484,-400.0,0.00021917,2]
[359231207,1745854234495,-400.0,0.00021917,2]
[359231208,1745854234505,-400.0,0.00021917,2]
[359231209,1745854234515,-400.0,0.00021917,2]
[359231210,1745854234525,-400.0,0.00021917,2]
[359231211,1745854234534,-400.0,0.00021917,2]
[359231212,1745854234543,-400.0,0.00021917,2]
[359231213,1745854234553,-400.0,0.00021917,2]
[359231214,1745854234563,-400.0,0.00021917,2]
[359231215,1745854234573,-400.0,0.00021917,2]
[359231216,1745854234582,-400.0,0.00021917,2]
[359231217,1745854234592,-400.0,0.00021917,2]
[359231218,1745854234602,-400.0,0.00021917,2]
[359231219,1745854234612,-400.0,0.00021917,2]
[359231220,1745854234622,-400.0,0.00021917,2]
[359231221,1745854234633,-400.0,0.00021917,2]
[359231222,1745854234643,-400.0,0.00021917,2]
[359231223,1745854234653,-500.2838692,0.00021917,2]
[359231224,1745854234663,-984.61,0.00021917,2]
[359231225,1745854234673,-400.0,0.00021917,2]
[359231226,1745854234683,-400.0,0.00021917,2]
[359231227,1745854234693,-400.0,0.00021917,2]
[359231228,1745854234704,-400.0,0.00021917,2]
[359231229,1745854234714,-400.0,0.00021917,2]
[359231230,1745854234722,-400.0,0.00021917,2]
[359231231,1745854234732,-607.8,0.00021917,2]
[359231232,1745854234742,-270.20868101,0.00021917,2]
[359231233,1745854234750,-400.0,0.00021917,2]
[359231234,1745854234760,-400.0,0.00021917,2]
[359231235,1745854234770,-400.0,0.00021917,2]
[359231236,1745854234779,-400.0,0.00021917,2]
[359231237,1745854234789,-400.0,0.00021917,2]
[359231238,1745854234798,-18.10805447,0.00021917,2]
[359231248,1745854238175,-1653.45926998,0.00020888,2]
[359231250,1745854238185,-381.89194553,0.00021917,2]
[359231252,1745854238195,-515.57844095,0.00021917,2]
[359231254,1745854238206,-400.0,0.00021917,2]
[359231256,1745854238216,-151.0,0.00021917,2]
[359231257,1745854238225,-156.296959,0.00021917,2]
[359231258,1745854238234,-504.5373869,0.00021917,2]
[359231259,1745854238243,-400.0,0.00021917,2]
[359231260,1745854238253,-501.12443878,0.00021917,2]
[359231261,1745854238262,-400.0,0.00021917,2]
[359231262,1745854238272,-400.0,0.00021917,2]
[359231263,1745854238281,-408.33,0.00021917,2]
[359231265,1745854238291,-400.0,0.00021917,2]
[359231266,1745854238301,-400.0,0.00021917,2]
[359231267,1745854238313,-197.69067479,0.00021917,2]
[359231268,1745854238326,-202.30932521,0.00021917,2]
[359231269,1745854238335,-1214.48334377,0.00021917,2]
[359231270,1745854238350,-439.72665623,0.00021917,2]
[359231271,1745854238360,-400.0,0.00021917,2]
[359231272,1745854238370,-400.0,0.00021917,2]
[359231273,1745854238380,-400.0,0.00021917,2]
[359231274,1745854238390,-400.0,0.00021917,2]
[359231275,1745854238399,-400.0,0.00021917,2]
[359231276,1745854238408,-400.0,0.00021917,2]
[359231277,1745854238418,-400.0,0.00021917,2]
[359231278,1745854238427,-400.0,0.00021917,2]
[359231279,1745854238437,-400.0,0.00021917,2]
[359231280,1745854238447,-400.0,0.00021917,2]
[359231281,1745854238458,-400.0,0.00021917,2]
[359231282,1745854238468,-202.25283533,0.00021917,2]
[359231283,1745854238478,-221.46781653,0.00021917,2]
[359231284,1745854238487,-620.87,0.00021917,2]
[359231285,1745854238497,-400.0,0.00021917,2]
[359231286,1745854238506,-400.0,0.00021917,2]
[359231287,1745854238516,-400.0,0.00021917,2]
[359231288,1745854238526,-400.0,0.00021917,2]
[359231289,1745854238535,-400.0,0.00021917,2]
[359231290,1745854238545,-543.83543269,0.00021917,2]
[359231291,1745854238554,-400.0,0.00021917,2]
[359231292,1745854238564,-481.88,0.00021917,2]
[359231293,1745854238575,-400.0,0.00021917,2]
[359231294,1745854238584,-400.0,0.00021917,2]
[359231295,1745854238594,-400.0,0.00021917,2]
[359231296,1745854238604,-502.51311949,0.00021917,2]
[359231297,1745854238613,-2724.77,0.00021917,2]
[359231298,1745854238623,-400.0,0.00021917,2]
[359231299,1745854238632,-400.0,0.00021917,2]
[359231300,1745854238642,-400.0,0.00021917,2]
[359231301,1745854238652,-400.0,0.00021917,2]
[359231302,1745854238813,-454.9,0.00021917,2]
[359231303,1745854238824,-400.0,0.00021917,2]
[359231304,1745854238834,-400.0,0.00021917,2]
[359231305,1745854238845,-400.0,0.00021917,2]
[359231306,1745854238855,-400.0,0.00021917,2]
[359231307,1745854238864,-400.0,0.00021917,2]
[359231308,1745854238874,-269.4071912,0.00021917,2]
[359231309,1745854238883,-590.23,0.00021917,2]
[359231310,1745854238893,-705.55,0.00021917,2]
[359231311,1745854238902,-400.0,0.00021917,2]
[359231312,1745854238912,-400.0,0.00021917,2]
[359231313,1745854238921,-125.4643116,0.00021917,2]
[359231314,1745854238935,-274.5356884,0.00021917,2]
[359231315,1745854238944,-400.0,0.00021917,2]
[359231316,1745854238955,-1309.2,0.00021917,2]
[359231317,1745854238964,-400.0,0.00021917,2]
[359231318,1745854238973,-473.03,0.00021917,2]
[359231319,1745854238982,-400.0,0.00021917,2]
[359231320,1745854238991,-400.0,0.00021917,2]
[359231321,1745854239000,-400.0,0.00021917,2]
[359231322,1745854239009,-400.0,0.00021917,2]
[359231323,1745854239019,-400.0,0.00021917,2]
[359231324,1745854239028,-400.0,0.00021917,2]
[359231325,1745854239037,-400.0,0.00021917,2]
[359231326,1745854239048,-169.72768613,0.00021917,2]
[359231327,1745854239060,-230.27231387,0.00021917,2]
[359231328,1745854239069,-400.0,0.00021917,2]
[359231329,1745854239078,-400.0,0.00021917,2]
[359231330,1745854239087,-400.0,0.00021917,2]
[359231331,1745854239096,-505.35902202,0.00021917,2]
[359231332,1745854239106,-400.0,0.00021917,2]
[359231333,1745854239115,-5746.96,0.00021917,2]
[359231334,1745854239124,-5746.96,0.00021917,2]
[359231335,1745854239133,-5746.96,0.00021917,2]
[359231336,1745854239142,-400.0,0.00021917,2]
[359231337,1745854239151,-400.0,0.00021917,2]
[359231338,1745854239160,-400.0,0.00021917,2]
[359231339,1745854239169,-400.0,0.00021917,2]
[359231340,1745854239178,-400.0,0.00021917,2]
[359231341,1745854239187,-400.0,0.00021917,2]
[359231342,1745854239197,-849.7,0.00021917,2]
[359231343,1745854239208,-400.0,0.00021917,2]
[359231344,1745854239218,-400.0,0.00021917,2]
[359231345,1745854239227,-408.63,0.00021917,2]
[359231346,1745854239236,-500.0,0.00021917,2]
[359231347,1745854239245,-432.02,0.00021917,2]
[359231348,1745854239254,-400.0,0.00021917,2]
[359231349,1745854239264,-400.0,0.00021917,2]
[359231350,1745854239273,-400.0,0.00021917,2]
[359231351,1745854239283,-400.0,0.00021917,2]
[359231352,1745854239292,-400.0,0.00021917,2]
[359231353,1745854239302,-400.0,0.00021917,2]
[359231354,1745854239312,-400.0,0.00021917,2]
[359231355,1745854239322,-400.0,0.00021917,2]
[359231356,1745854239331,-404.48,0.00021917,2]
[359231357,1745854239339,-400.0,0.00021917,2]
[359231358,1745854239348,-400.0,0.00021917,2]
[359231359,1745854239358,-400.0,0.00021917,2]
[359231360,1745854239367,-688.37,0.00021917,2]
[359231361,1745854239377,-400.0,0.00021917,2]
[359231362,1745854239389,-400.0,0.00021917,2]
[359231363,1745854239399,-400.0,0.00021917,2]
[359231364,1745854239409,-400.0,0.00021917,2]
[359231365,1745854239418,-400.0,0.00021917,2]
[359231366,1745854239429,-400.0,0.00021917,2]
[359231367,1745854239440,-400.0,0.00021917,2]
[359231368,1745854239450,-400.0,0.00021917,2]
[359231369,1745854239460,-400.0,0.00021917,2]
[359231370,1745854239470,-400.0,0.00021917,2]
[359231371,1745854239480,-400.0,0.00021917,2]
[359231372,1745854239489,-400.0,0.00021917,2]
[359231373,1745854239499,-400.0,0.00021917,2]
[359231374,1745854239509,-506.08705284,0.00021917,2]
[359231375,1745854239518,-452.1,0.00021917,2]
[359231376,1745854239528,-400.0,0.00021917,2]
[359231377,1745854239538,-400.0,0.00021917,2]
[359231378,1745854239548,-163.31926674,0.00021917,2]
[359231379,1745854239558,-400.0,0.00021917,2]
[359231380,1745854239568,-400.0,0.00021917,2]
[359231381,1745854239578,-400.0,0.00021917,2]
[359231382,1745854239588,-515.38,0.00021917,2]
[359231383,1745854239597,-464.61,0.00021917,2]
[359231384,1745854239606,-400.0,0.00021917,2]
[359231385,1745854239615,-401.28326586,0.00021917,2]
[359231386,1745854239625,-400.0,0.00021917,2]
[359231388,1745854239635,-400.0,0.00021917,2]
[359231389,1745854239645,-534.49,0.00021917,2]
[359231390,1745854239655,-511.87008856,0.00021917,2]
[359231391,1745854239664,-400.0,0.00021917,2]
[359231392,1745854239674,-400.0,0.00021917,2]
[359231393,1745854239685,-400.0,0.00021917,2]
[359231394,1745854239694,-400.0,0.00021917,2]
[359231395,1745854239706,-400.0,0.00021917,2]
[359231396,1745854239715,-1351.34,0.00021917,2]
[359231397,1745854239724,-400.0,0.00021917,2]
[359231398,1745854239734,-1351.34,0.00021917,2]
[359231399,1745854239743,-1351.34,0.00021917,2]
[359231400,1745854239753,-400.0,0.00021917,2]
[359231402,1745854239763,-1351.34,0.00021917,2]
[359231403,1745854239773,-1351.34,0.00021917,2]
[359231405,1745854239782,-1351.34,0.00021917,2]